[Event "Early-Titled-Tuesday-Blitz-April-23-2024"]
[Site "Chess.com"]
[Date "2024.04.23"]
[Round "8"]
[White "RasSanti"]
[Black "klifus"]
[Result "0-1"]
[WhiteElo "2280"]
[BlackElo "2137"]
[TimeControl "180+1"]
[EndTime "9:33:21 PDT"]
[Termination "klifus won by checkmate"]

1. d4 {[%clk 0:02:57.2]} 1... Nf6 {[%clk 0:02:59.1]} 2. Bg5 {[%clk 0:02:54.6]}
2... Ne4 {[%clk 0:02:57.9]} 3. Bf4 {[%clk 0:02:54.4]} 3... c5 {[%clk 0:02:56.2]}
4. f3 {[%clk 0:02:54.5]} 4... Qa5+ {[%clk 0:02:51.7]} 5. c3 {[%clk 0:02:54.4]}
5... Nf6 {[%clk 0:02:49.1]} 6. Nd2 {[%clk 0:02:53.7]} 6... cxd4 {[%clk
0:02:44.8]} 7. Nb3 {[%clk 0:02:54.1]} 7... Qb6 {[%clk 0:02:43.3]} 8. Qxd4 {[%clk
0:02:53.4]} 8... Qxd4 {[%clk 0:02:38.2]} 9. Nxd4 {[%clk 0:02:54.3]} 9... d6
{[%clk 0:02:35.9]} 10. Bg3 {[%clk 0:02:41.1]} 10... Bd7 {[%clk 0:02:32.8]} 11.
e4 {[%clk 0:02:40]} 11... g6 {[%clk 0:02:28.6]} 12. Bc4 {[%clk 0:02:26.8]} 12...
Bg7 {[%clk 0:02:26.9]} 13. Nge2 {[%clk 0:02:24.2]} 13... O-O {[%clk 0:02:26.4]}
14. O-O {[%clk 0:02:16.9]} 14... Nc6 {[%clk 0:02:25.8]} 15. Rfd1 {[%clk
0:02:13.7]} 15... a6 {[%clk 0:02:23.4]} 16. Nc2 {[%clk 0:01:56.1]} 16... b5
{[%clk 0:02:21.3]} 17. Bb3 {[%clk 0:01:51.8]} 17... Na5 {[%clk 0:02:20.3]} 18.
Ne3 {[%clk 0:01:51.4]} 18... Rfc8 {[%clk 0:02:08]} 19. Nd5 {[%clk 0:01:34.4]}
19... Nxd5 {[%clk 0:02:06.6]} 20. Bxd5 {[%clk 0:01:34.1]} 20... Bc6 {[%clk
0:02:06.2]} 21. Nf4 {[%clk 0:01:19.4]} 21... Be5 {[%clk 0:01:50.3]} 22. Bxc6
{[%clk 0:01:15.6]} 22... Nxc6 {[%clk 0:01:41]} 23. Nd5 {[%clk 0:01:13.2]} 23...
Bxg3 {[%clk 0:01:40.2]} 24. hxg3 {[%clk 0:01:14.1]} 24... Kf8 {[%clk 0:01:37.5]}
25. Nb6 {[%clk 0:01:13.6]} 25... Rab8 {[%clk 0:01:35.2]} 26. Nxc8 {[%clk
0:01:13.2]} 26... Rxc8 {[%clk 0:01:34.7]} 27. g4 {[%clk 0:01:11.2]} 27... Ne5
{[%clk 0:01:30.9]} 28. Kf2 {[%clk 0:01:07]} 28... Nc4 {[%clk 0:01:28.2]} 29.
Rab1 {[%clk 0:01:04.7]} 29... Rc5 {[%clk 0:01:27.2]} 30. Rd5 {[%clk 0:00:55.3]}
30... Rc7 {[%clk 0:01:22.6]} 31. Ke2 {[%clk 0:00:52.2]} 31... e6 {[%clk
0:01:21.4]} 32. Rdd1 {[%clk 0:00:49.3]} 32... Ke7 {[%clk 0:01:20.9]} 33. Rh1
{[%clk 0:00:44]} 33... a5 {[%clk 0:01:13.9]} 34. a3 {[%clk 0:00:38.8]} 34... b4
{[%clk 0:01:10.7]} 35. axb4 {[%clk 0:00:38.9]} 35... axb4 {[%clk 0:01:10.2]} 36.
Rxh7 {[%clk 0:00:38.6]} 36... bxc3 {[%clk 0:01:08.8]} 37. bxc3 {[%clk
0:00:39.5]} 37... Na3 {[%clk 0:01:07.9]} 38. Rb3 {[%clk 0:00:36.1]} 38... Nc4
{[%clk 0:01:05.2]} 39. Kd3 {[%clk 0:00:29.8]} 39... Ne5+ {[%clk 0:01:01.3]} 40.
Kc2 {[%clk 0:00:21.4]} 40... Kf6 {[%clk 0:01:01.2]} 41. Rh1 {[%clk 0:00:19.8]}
41... Kg5 {[%clk 0:01:00.4]} 42. Rb2 {[%clk 0:00:13.5]} 42... Kf4 {[%clk
0:00:59.6]} 43. Kb3 {[%clk 0:00:12.2]} 43... Rb7+ {[%clk 0:00:53.5]} 44. Kc2
{[%clk 0:00:11.8]} 44... Rxb2+ {[%clk 0:00:53]} 45. Kxb2 {[%clk 0:00:12.7]}
45... Kg3 {[%clk 0:00:52.4]} 46. Rg1 {[%clk 0:00:10.9]} 46... Kf2 {[%clk
0:00:52.1]} 47. Rd1 {[%clk 0:00:11.5]} 47... Kxg2 {[%clk 0:00:50]} 48. f4 {[%clk
0:00:12]} 48... Nxg4 {[%clk 0:00:41]} 49. Rxd6 {[%clk 0:00:12]} 49... Kf3 {[%clk
0:00:40.8]} 50. f5 {[%clk 0:00:12.4]} 50... gxf5 {[%clk 0:00:37.7]} 51. exf5
{[%clk 0:00:13.3]} 51... exf5 {[%clk 0:00:37.5]} 52. c4 {[%clk 0:00:13.8]} 52...
Ke4 {[%clk 0:00:36.2]} 53. c5 {[%clk 0:00:12.6]} 53... Ne3 {[%clk 0:00:32.4]}
54. Kc3 {[%clk 0:00:12.3]} 54... f4 {[%clk 0:00:28.2]} 55. c6 {[%clk 0:00:11.7]}
55... Nd5+ {[%clk 0:00:26.1]} 56. Kc4 {[%clk 0:00:10.7]} 56... Nc7 {[%clk
0:00:25.4]} 57. Kc5 {[%clk 0:00:07.2]} 57... f3 {[%clk 0:00:22.8]} 58. Kb6
{[%clk 0:00:06.6]} 58... f2 {[%clk 0:00:13.9]} 59. Rf6 {[%clk 0:00:05.1]} 59...
Nd5+ {[%clk 0:00:12.9]} 60. Kb7 {[%clk 0:00:04.8]} 60... Nxf6 {[%clk 0:00:12.8]}
61. c7 {[%clk 0:00:05.3]} 61... Ne8 {[%clk 0:00:11.6]} 62. c8=Q {[%clk
0:00:06.2]} 62... Nd6+ {[%clk 0:00:11.5]} 63. Kc7 {[%clk 0:00:06.4]} 63... Nxc8
{[%clk 0:00:11.3]} 64. Kxc8 {[%clk 0:00:07.3]} 64... f1=Q {[%clk 0:00:10.5]} 65.
Kd7 {[%clk 0:00:08.2]} 65... Qa6 {[%clk 0:00:09.5]} 66. Ke7 {[%clk 0:00:08.1]}
66... Kf5 {[%clk 0:00:09.6]} 67. Kd7 {[%clk 0:00:07.5]} 67... Ke5 {[%clk
0:00:09.3]} 68. Kc7 {[%clk 0:00:07.1]} 68... Kd5 {[%clk 0:00:08.3]} 69. Kd7
{[%clk 0:00:06.5]} 69... Qb7+ {[%clk 0:00:08.1]} 70. Ke8 {[%clk 0:00:06.9]}
70... Ke6 {[%clk 0:00:07.1]} 71. Kf8 {[%clk 0:00:07.2]} 71... f5 {[%clk
0:00:07.2]} 72. Kg8 {[%clk 0:00:07.5]} 72... Kf6 {[%clk 0:00:07.4]} 73. Kh8
{[%clk 0:00:07.8]} 73... Qg7# {[%clk 0:00:07.3]} 0-1

[Event "Early-Titled-Tuesday-Blitz-April-23-2024"]
[Site "Chess.com"]
[Date "2024.04.23"]
[Round "8"]
[White "Kyrko_Gamba"]
[Black "Anu-triz"]
[Result "1-0"]
[WhiteElo "2432"]
[BlackElo "2190"]
[TimeControl "180+1"]
[EndTime "9:33:27 PDT"]
[Termination "Kyrko_Gamba won on time"]

1. c4 {[%clk 0:03:00.9]} 1... c5 {[%clk 0:02:59.2]} 2. Nc3 {[%clk 0:03:00.3]}
2... Nc6 {[%clk 0:02:58.7]} 3. Nf3 {[%clk 0:03:00.4]} 3... Nf6 {[%clk
0:02:58.1]} 4. e3 {[%clk 0:03:00.1]} 4... d5 {[%clk 0:02:55.9]} 5. cxd5 {[%clk
0:02:59.7]} 5... Nxd5 {[%clk 0:02:56.8]} 6. Bb5 {[%clk 0:02:59.1]} 6... Nxc3
{[%clk 0:02:52]} 7. bxc3 {[%clk 0:02:58.6]} 7... Bd7 {[%clk 0:02:50.6]} 8. O-O
{[%clk 0:02:57.7]} 8... e6 {[%clk 0:02:47.1]} 9. d4 {[%clk 0:02:57.5]} 9... cxd4
{[%clk 0:02:46.4]} 10. cxd4 {[%clk 0:02:56.6]} 10... Qb6 {[%clk 0:02:30.7]} 11.
Rb1 {[%clk 0:02:54.8]} 11... a6 {[%clk 0:02:29.9]} 12. Bd3 {[%clk 0:02:54.5]}
12... Qc7 {[%clk 0:02:30]} 13. Bd2 {[%clk 0:02:43.4]} 13... Bd6 {[%clk
0:02:27.3]} 14. Qc2 {[%clk 0:02:41]} 14... h6 {[%clk 0:02:22.3]} 15. Rfc1 {[%clk
0:02:40.7]} 15... O-O {[%clk 0:02:21.5]} 16. e4 {[%clk 0:02:35.8]} 16... Qb8
{[%clk 0:01:51.6]} 17. e5 {[%clk 0:01:47.1]} 17... Be7 {[%clk 0:01:46.9]} 18.
Bh7+ {[%clk 0:01:43.1]} 18... Kh8 {[%clk 0:01:46.3]} 19. Be4 {[%clk 0:01:43.6]}
19... Rc8 {[%clk 0:01:45]} 20. Qd3 {[%clk 0:01:43.7]} 20... Qa7 {[%clk
0:01:25.4]} 21. Be3 {[%clk 0:01:41.1]} 21... Nb4 {[%clk 0:01:21.8]} 22. Qe2
{[%clk 0:01:41]} 22... Nd5 {[%clk 0:01:21.6]} 23. Bxd5 {[%clk 0:01:34.7]} 23...
exd5 {[%clk 0:01:22.5]} 24. Nd2 {[%clk 0:01:29.6]} 24... Bf5 {[%clk 0:01:16.3]}
25. Rxc8+ {[%clk 0:01:27.4]} 25... Rxc8 {[%clk 0:01:17.2]} 26. Re1 {[%clk
0:01:26.8]} 26... Qb6 {[%clk 0:01:14.8]} 27. Qf3 {[%clk 0:01:26.8]} 27... Bg6
{[%clk 0:01:11.3]} 28. Qxd5 {[%clk 0:01:22.2]} 28... Qb2 {[%clk 0:00:58]} 29.
Qd7 {[%clk 0:01:16.8]} 29... Rc1 {[%clk 0:00:48.1]} 30. Rxc1 {[%clk 0:01:16.5]}
30... Qxc1+ {[%clk 0:00:49]} 31. Nf1 {[%clk 0:01:17.1]} 31... Qb1 {[%clk
0:00:31.2]} 32. Qxe7 {[%clk 0:01:08.6]} 32... Bd3 {[%clk 0:00:30.3]} 33. h3
{[%clk 0:01:07.5]} 33... Qxf1+ {[%clk 0:00:19.2]} 34. Kh2 {[%clk 0:01:07.5]}
34... Bc4 {[%clk 0:00:15]} 35. d5 {[%clk 0:01:06.6]} 35... Qd3 {[%clk
0:00:09.5]} 36. e6 {[%clk 0:00:34.8]} 36... fxe6 {[%clk 0:00:07.6]} 37. dxe6
{[%clk 0:00:35.4]} 37... Qe4 {[%clk 0:00:05.1]} 38. Qf8+ {[%clk 0:00:32.7]}
38... Kh7 {[%clk 0:00:04.7]} 39. e7 {[%clk 0:00:33.3]} 39... Bb5 {[%clk
0:00:03.3]} 40. Bf4 {[%clk 0:00:29.4]} 40... Bc6 {[%clk 0:00:02.6]} 41. f3
{[%clk 0:00:28.6]} 41... Qe6 {[%clk 0:00:02]} 42. Qd8 {[%clk 0:00:23.9]} 42...
Qd7 {[%clk 0:00:02.2]} 43. Be5 {[%clk 0:00:19.2]} 43... Qe8 {[%clk 0:00:02.3]}
44. Qd6 {[%clk 0:00:14.4]} 44... Qf7 {[%clk 0:00:02.6]} 45. Bc3 {[%clk
0:00:11.8]} 45... Qe8 {[%clk 0:00:02.8]} 46. Qe5 {[%clk 0:00:11.9]} 46... Qf7
{[%clk 0:00:03.1]} 47. Kg3 {[%clk 0:00:11.4]} 47... Kg8 {[%clk 0:00:03.5]} 48.
a4 {[%clk 0:00:10.8]} 48... Kh7 {[%clk 0:00:03.7]} 49. a5 {[%clk 0:00:10.8]}
49... Kg8 {[%clk 0:00:04.2]} 50. Bd4 {[%clk 0:00:11]} 50... Kh7 {[%clk
0:00:04.4]} 51. h4 {[%clk 0:00:11.6]} 51... Kg8 {[%clk 0:00:04.8]} 52. h5 {[%clk
0:00:12]} 52... Kh7 {[%clk 0:00:04.4]} 53. Kf2 {[%clk 0:00:10.9]} 53... Kg8
{[%clk 0:00:04.7]} 54. Ke3 {[%clk 0:00:11.1]} 54... Qe8 {[%clk 0:00:04.7]} 55.
Bc3 {[%clk 0:00:10.8]} 55... Qf7 {[%clk 0:00:04.7]} 56. Kd4 {[%clk 0:00:10.3]}
56... Kh7 {[%clk 0:00:04.8]} 57. Kc5 {[%clk 0:00:10.1]} 57... Kg8 {[%clk
0:00:05.1]} 58. Kb6 {[%clk 0:00:09.9]} 58... Kh7 {[%clk 0:00:05]} 59. Ka7 {[%clk
0:00:09.4]} 59... Kg8 {[%clk 0:00:05.1]} 60. f4 {[%clk 0:00:09.2]} 60... Kh7
{[%clk 0:00:04.8]} 61. g4 {[%clk 0:00:09.2]} 61... Kg8 {[%clk 0:00:05]} 62. g5
{[%clk 0:00:07.6]} 62... hxg5 {[%clk 0:00:05]} 63. fxg5 {[%clk 0:00:08]} 63...
Be8 {[%clk 0:00:01.1]} 64. g6 {[%clk 0:00:08]} 1-0

[Event "Early-Titled-Tuesday-Blitz-April-23-2024"]
[Site "Chess.com"]
[Date "2024.04.23"]
[Round "8"]
[White "UnTucopalaTimba"]
[Black "Ariadna_Atreides"]
[Result "0-1"]
[WhiteElo "2027"]
[BlackElo "2222"]
[TimeControl "180+1"]
[EndTime "9:33:27 PDT"]
[Termination "Ariadna_Atreides won on time"]

1. e4 {[%clk 0:02:58.9]} 1... c6 {[%clk 0:02:47.2]} 2. d4 {[%clk 0:02:58]} 2...
d5 {[%clk 0:02:46.6]} 3. Nc3 {[%clk 0:02:58.3]} 3... dxe4 {[%clk 0:02:45.2]} 4.
Nxe4 {[%clk 0:02:58.4]} 4... Nf6 {[%clk 0:02:45.5]} 5. Nxf6+ {[%clk 0:02:56.2]}
5... exf6 {[%clk 0:02:46.4]} 6. c3 {[%clk 0:02:54.9]} 6... Bd6 {[%clk
0:02:46.6]} 7. Bd3 {[%clk 0:02:52.6]} 7... O-O {[%clk 0:02:46.5]} 8. Qc2 {[%clk
0:02:51.7]} 8... Re8+ {[%clk 0:02:42.4]} 9. Ne2 {[%clk 0:02:51.5]} 9... h5
{[%clk 0:02:42.3]} 10. O-O {[%clk 0:02:50.2]} 10... h4 {[%clk 0:02:42.3]} 11. h3
{[%clk 0:02:49.5]} 11... Nd7 {[%clk 0:02:39.5]} 12. Be3 {[%clk 0:02:46.1]} 12...
Nf8 {[%clk 0:02:34.8]} 13. b3 {[%clk 0:02:38.7]} 13... g6 {[%clk 0:02:33.4]} 14.
c4 {[%clk 0:02:33.3]} 14... f5 {[%clk 0:02:31.3]} 15. Rfe1 {[%clk 0:02:29.1]}
15... Qf6 {[%clk 0:02:16.4]} 16. Bf4 {[%clk 0:02:21.8]} 16... Rxe2 {[%clk
0:02:09.9]} 17. Rxe2 {[%clk 0:02:17.9]} 17... Bxf4 {[%clk 0:02:09.9]} 18. Rae1
{[%clk 0:02:15.7]} 18... Be6 {[%clk 0:02:01]} 19. Qc3 {[%clk 0:02:07.1]} 19...
Rd8 {[%clk 0:01:58.8]} 20. Qc2 {[%clk 0:02:00.7]} 20... Qxd4 {[%clk 0:01:55.9]}
21. Rd1 {[%clk 0:01:58.1]} 21... Bc7 {[%clk 0:01:51.4]} 22. Re3 {[%clk
0:01:53.9]} 22... Qf4 {[%clk 0:01:50]} 23. g3 {[%clk 0:01:48.1]} 23... hxg3
{[%clk 0:01:48.9]} 24. Rxg3 {[%clk 0:01:47.8]} 24... Qh4 {[%clk 0:01:43.1]} 25.
Rf3 {[%clk 0:01:46.1]} 25... f4 {[%clk 0:01:37.6]} 26. Bf1 {[%clk 0:01:39.5]}
26... Bf5 {[%clk 0:01:25.6]} 27. Qe2 {[%clk 0:01:23.8]} 27... Rxd1 {[%clk
0:01:17.4]} 28. Qxd1 {[%clk 0:01:23.3]} 28... Be4 {[%clk 0:01:15.6]} 29. Rc3
{[%clk 0:01:16.3]} 29... Be5 {[%clk 0:00:41.4]} 30. Rf3 {[%clk 0:00:53.8]} 30...
Bxf3 {[%clk 0:00:38]} 31. Qxf3 {[%clk 0:00:53.6]} 31... Ne6 {[%clk 0:00:26.7]}
32. Qe4 {[%clk 0:00:42.3]} 32... Qg5+ {[%clk 0:00:24]} 33. Kh1 {[%clk
0:00:38.9]} 33... Qf5 {[%clk 0:00:19.7]} 34. Qf3 {[%clk 0:00:33.9]} 34... Nd4
{[%clk 0:00:18.7]} 35. Qg4 {[%clk 0:00:25.5]} 35... Qxg4 {[%clk 0:00:18.6]} 36.
hxg4 {[%clk 0:00:26.4]} 36... Nc2 {[%clk 0:00:17.9]} 37. Bd3 {[%clk 0:00:23.3]}
37... Nb4 {[%clk 0:00:17.6]} 38. Bb1 {[%clk 0:00:22.8]} 38... f3 {[%clk
0:00:16]} 39. Kg1 {[%clk 0:00:22.6]} 39... Bd4 {[%clk 0:00:15.6]} 40. Kf1 {[%clk
0:00:21.6]} 40... Kg7 {[%clk 0:00:14]} 41. a3 {[%clk 0:00:20.2]} 41... Na6
{[%clk 0:00:13.9]} 42. Be4 {[%clk 0:00:18.9]} 42... Nc5 {[%clk 0:00:14]} 43. Bc2
{[%clk 0:00:18.2]} 43... Kf6 {[%clk 0:00:13.1]} 44. b4 {[%clk 0:00:16.5]} 44...
Ne6 {[%clk 0:00:12.2]} 45. Be4 {[%clk 0:00:14.4]} 45... Kg5 {[%clk 0:00:12.2]}
46. Bxf3 {[%clk 0:00:13.8]} 46... Kf4 {[%clk 0:00:12.8]} 47. Bd1 {[%clk
0:00:13.2]} 47... Bb2 {[%clk 0:00:12.6]} 48. a4 {[%clk 0:00:12.8]} 48... Bc3
{[%clk 0:00:10.9]} 49. b5 {[%clk 0:00:12.8]} 49... c5 {[%clk 0:00:10.3]} 50. Kg2
{[%clk 0:00:11.4]} 50... b6 {[%clk 0:00:09.6]} 51. Bc2 {[%clk 0:00:10.4]} 51...
Bd4 {[%clk 0:00:09.4]} 52. f3 {[%clk 0:00:10.4]} 52... Ng5 {[%clk 0:00:08.8]}
53. Bd1 {[%clk 0:00:09.5]} 53... f6 {[%clk 0:00:06.2]} 54. Be2 {[%clk
0:00:07.8]} 54... f5 {[%clk 0:00:06.1]} 55. gxf5 {[%clk 0:00:07.5]} 55... Kxf5
{[%clk 0:00:06.5]} 56. Kg3 {[%clk 0:00:07.4]} 56... Ne6 {[%clk 0:00:06.8]} 57.
Bd3+ {[%clk 0:00:06.2]} 57... Kg5 {[%clk 0:00:07.3]} 58. Be4 {[%clk 0:00:04.3]}
58... Nf4 {[%clk 0:00:07.3]} 59. Bd5 {[%clk 0:00:02.9]} 59... Ne2+ {[%clk
0:00:07.3]} 60. Kg2 {[%clk 0:00:02.8]} 60... Nc3 {[%clk 0:00:08.2]} 61. Be4
{[%clk 0:00:01.4]} 61... Nxe4 {[%clk 0:00:08.1]} 62. fxe4 {[%clk 0:00:01.6]}
62... Kf4 {[%clk 0:00:09]} 0-1

[Event "Early-Titled-Tuesday-Blitz-April-23-2024"]
[Site "Chess.com"]
[Date "2024.04.23"]
[Round "8"]
[White "Silvederione"]
[Black "Meri-Arabidze"]
[Result "0-1"]
[WhiteElo "2489"]
[BlackElo "2665"]
[TimeControl "180+1"]
[EndTime "9:33:30 PDT"]
[Termination "Meri-Arabidze won by checkmate"]

1. d4 {[%clk 0:03:00.9]} 1... Nf6 {[%clk 0:02:59.5]} 2. Nc3 {[%clk 0:02:59.7]}
2... d5 {[%clk 0:02:58.9]} 3. Bf4 {[%clk 0:03:00]} 3... c6 {[%clk 0:02:56.4]} 4.
e3 {[%clk 0:03:00.2]} 4... Bg4 {[%clk 0:02:54.6]} 5. f3 {[%clk 0:03:00.8]} 5...
Be6 {[%clk 0:02:49]} 6. g4 {[%clk 0:03:00.9]} 6... g6 {[%clk 0:02:44.5]} 7. h4
{[%clk 0:03:00.4]} 7... h5 {[%clk 0:02:44.3]} 8. g5 {[%clk 0:03:00.8]} 8... Nfd7
{[%clk 0:02:43.5]} 9. e4 {[%clk 0:02:55.9]} 9... Nb6 {[%clk 0:02:41.2]} 10. Be5
{[%clk 0:02:51.9]} 10... Rg8 {[%clk 0:02:35.2]} 11. Qd2 {[%clk 0:02:51.8]} 11...
N8d7 {[%clk 0:02:32.4]} 12. Bf4 {[%clk 0:02:48.2]} 12... Bg7 {[%clk 0:02:31.2]}
13. exd5 {[%clk 0:02:37.6]} 13... Nxd5 {[%clk 0:02:26.1]} 14. Nxd5 {[%clk
0:02:36.1]} 14... Bxd5 {[%clk 0:02:19.9]} 15. O-O-O {[%clk 0:02:26.6]} 15... Nb6
{[%clk 0:02:16]} 16. Kb1 {[%clk 0:02:24.1]} 16... Qd7 {[%clk 0:02:11]} 17. b3
{[%clk 0:02:12.8]} 17... Be6 {[%clk 0:02:01.4]} 18. Ne2 {[%clk 0:01:46.1]} 18...
Nd5 {[%clk 0:01:50.7]} 19. Bg3 {[%clk 0:01:46.1]} 19... Bf5 {[%clk 0:01:50.9]}
20. Nf4 {[%clk 0:01:43.6]} 20... Nxf4 {[%clk 0:01:42.4]} 21. Bxf4 {[%clk
0:01:43.7]} 21... Rd8 {[%clk 0:01:36.6]} 22. Be3 {[%clk 0:01:15.7]} 22... e5
{[%clk 0:01:36.5]} 23. dxe5 {[%clk 0:00:57.5]} 23... Qxd2 {[%clk 0:01:36.3]} 24.
Rxd2 {[%clk 0:00:58.4]} 24... Rxd2 {[%clk 0:01:35.8]} 25. Bxd2 {[%clk
0:00:59.3]} 25... Bxe5 {[%clk 0:01:35.8]} 26. Bc4 {[%clk 0:00:51.6]} 26... Bg3
{[%clk 0:01:21.2]} 27. Be1 {[%clk 0:00:41.9]} 27... Bxe1 {[%clk 0:01:17.8]} 28.
Rxe1+ {[%clk 0:00:42.8]} 28... Kd7 {[%clk 0:00:45.9]} 29. Bxf7 {[%clk
0:00:41.9]} 29... Rf8 {[%clk 0:00:46.5]} 30. Bc4 {[%clk 0:00:38.7]} 30... b5
{[%clk 0:00:45.6]} 31. Bf1 {[%clk 0:00:30]} 31... Be6 {[%clk 0:00:40.8]} 32. Bd3
{[%clk 0:00:22.6]} 32... Bf5 {[%clk 0:00:40.9]} 33. Bf1 {[%clk 0:00:17.7]} 33...
Be6 {[%clk 0:00:40.3]} 34. Re3 {[%clk 0:00:16.9]} 34... a6 {[%clk 0:00:30.5]}
35. Bd3 {[%clk 0:00:17]} 35... Bf5 {[%clk 0:00:30.5]} 36. Be2 {[%clk 0:00:16.4]}
36... Be6 {[%clk 0:00:25.3]} 37. Kb2 {[%clk 0:00:15.8]} 37... Kd6 {[%clk
0:00:21.1]} 38. c4 {[%clk 0:00:14.3]} 38... Rf4 {[%clk 0:00:20]} 39. cxb5 {[%clk
0:00:12.8]} 39... cxb5 {[%clk 0:00:18.5]} 40. Bd3 {[%clk 0:00:13.1]} 40... Bf5
{[%clk 0:00:14.1]} 41. Bxf5 {[%clk 0:00:13]} 41... Rxf5 {[%clk 0:00:15]} 42. Kc3
{[%clk 0:00:12.1]} 42... Rf4 {[%clk 0:00:14.4]} 43. Rd3+ {[%clk 0:00:11.6]}
43... Kc5 {[%clk 0:00:11.8]} 44. b4+ {[%clk 0:00:10.3]} 44... Kc6 {[%clk
0:00:09.6]} 45. Re3 {[%clk 0:00:08.2]} 45... Kd6 {[%clk 0:00:09.5]} 46. Rd3+
{[%clk 0:00:08.4]} 46... Kc6 {[%clk 0:00:09.8]} 47. Re3 {[%clk 0:00:08.4]} 47...
Kd5 {[%clk 0:00:08.8]} 48. Rd3+ {[%clk 0:00:07.4]} 48... Ke5 {[%clk 0:00:07.6]}
49. Rd8 {[%clk 0:00:06.5]} 49... Rxf3+ {[%clk 0:00:07]} 50. Kb2 {[%clk
0:00:06.3]} 50... Rf2+ {[%clk 0:00:06.9]} 51. Kb3 {[%clk 0:00:06.4]} 51... Rf3+
{[%clk 0:00:07.2]} 52. Kc2 {[%clk 0:00:06.9]} 52... Rf4 {[%clk 0:00:07.5]} 53.
Rg8 {[%clk 0:00:05.3]} 53... Kf5 {[%clk 0:00:05.9]} 54. Ra8 {[%clk 0:00:04.8]}
54... Rxb4 {[%clk 0:00:04.7]} 55. Rxa6 {[%clk 0:00:05]} 55... Rxh4 {[%clk
0:00:04.9]} 56. Rb6 {[%clk 0:00:04.1]} 56... Kxg5 {[%clk 0:00:04.7]} 57. Rxb5+
{[%clk 0:00:04.7]} 57... Kh6 {[%clk 0:00:04.6]} 58. Kb3 {[%clk 0:00:04.5]} 58...
Rh1 {[%clk 0:00:04.6]} 59. a4 {[%clk 0:00:04.6]} 59... Rb1+ {[%clk 0:00:04.4]}
60. Kc2 {[%clk 0:00:04.2]} 60... Ra1 {[%clk 0:00:04.5]} 61. Kb3 {[%clk
0:00:04.4]} 61... h4 {[%clk 0:00:04.7]} 62. Rb8 {[%clk 0:00:04.4]} 62... Rb1+
{[%clk 0:00:04.4]} 63. Kc2 {[%clk 0:00:03.8]} 63... Rxb8 {[%clk 0:00:05.3]} 64.
a5 {[%clk 0:00:03]} 64... Ra8 {[%clk 0:00:06.2]} 65. Kd3 {[%clk 0:00:03.9]}
65... Rxa5 {[%clk 0:00:05.9]} 66. Ke3 {[%clk 0:00:04.8]} 66... g5 {[%clk
0:00:06.6]} 67. Kf3 {[%clk 0:00:05.7]} 67... Kh5 {[%clk 0:00:07.5]} 68. Kg2
{[%clk 0:00:06.4]} 68... g4 {[%clk 0:00:07.9]} 69. Kh2 {[%clk 0:00:07.3]} 69...
Ra2+ {[%clk 0:00:08.2]} 70. Kg1 {[%clk 0:00:08.2]} 70... h3 {[%clk 0:00:08.6]}
71. Kf1 {[%clk 0:00:09.1]} 71... Kh4 {[%clk 0:00:09.2]} 72. Ke1 {[%clk 0:00:10]}
72... h2 {[%clk 0:00:09.2]} 73. Kf1 {[%clk 0:00:10.9]} 73... h1=Q# {[%clk
0:00:09.7]} 0-1